fUST/lending_fUST_20250920
["ID","MTS","AMOUNT","RATE_DAILY","PERIOD"]
[386491274,1758319851493,-480.0,0.0002193,2]
[386491276,1758319851502,-765.92,0.0002193,2]
[386491278,1758319851512,-480.0,0.0002193,2]
[386491280,1758319851521,-480.0,0.0002193,2]
[386491282,1758319851530,-496.17165839,0.0002193,2]
[386491284,1758319851539,-480.0,0.0002193,2]
[386491286,1758319851549,-480.0,0.0002193,2]
[386491288,1758319851559,-480.0,0.0002193,2]
[386491290,1758319851568,-480.0,0.00021932,2]
[386491292,1758319851578,-431.10579974,0.00021932,2]
[386491294,1758319851587,-480.0,0.00021932,2]
[386491296,1758319851596,-480.0,0.00021932,2]
[386491298,1758319851606,-480.0,0.00021932,2]
[386491300,1758319851616,-480.0,0.00021932,2]
[386491302,1758319851625,-480.0,0.00021932,2]
[386491304,1758319851634,-480.0,0.00021932,2]
[386491306,1758319851643,-480.0,0.00021932,2]
[386491308,1758319851652,-480.0,0.00021932,2]
[386491310,1758319851662,-480.0,0.00021932,2]
[386491312,1758319851672,-480.0,0.00021932,2]
[386491314,1758319851681,-480.0,0.00021932,2]
[386491316,1758319851690,-480.0,0.00021932,2]
[386491318,1758319851700,-480.0,0.00021932,2]
[386491320,1758319851709,-568.17,0.00021932,2]
[386491322,1758319851718,-480.0,0.00021932,2]
[386491324,1758319851727,-598.46297857,0.00021932,2]
[386491326,1758319851738,-480.0,0.00021932,2]
[386491328,1758319851747,-480.0,0.00021932,2]
[386491351,1758319851970,-480.0,0.00021932,2]
[386491353,1758319851980,-480.0,0.00021932,2]
[386491356,1758319851990,-480.0,0.00021932,2]
[386491358,1758319851999,-480.0,0.00021932,2]
[386491360,1758319852008,-480.0,0.00021932,2]
[386491362,1758319852018,-480.0,0.00021932,2]
[386491364,1758319852027,-480.0,0.00021932,2]
[386491365,1758319852036,-480.0,0.00021932,2]
[386491367,1758319852046,-480.0,0.00021932,2]
[386491369,1758319852055,-480.0,0.00021932,2]
[386491371,1758319852064,-480.0,0.00021932,2]
[386491373,1758319852073,-429.87490179,0.00021932,2]
[386491375,1758319852082,-480.0,0.00021932,2]
[386491377,1758319852092,-480.0,0.00021932,2]
[386491379,1758319852101,-585.38721946,0.00021932,2]
[386491381,1758319852110,-191.79959424,0.00021932,2]
[386491383,1758319852120,-480.0,0.00021932,2]
[386491385,1758319852129,-480.0,0.00021932,2]
[386491388,1758319852139,-480.0,0.00021932,2]
[386491389,1758319852149,-480.0,0.00021932,2]
[386491400,1758319852232,-480.0,0.00021932,2]
[386491402,1758319852242,-480.0,0.00021932,2]
[386491404,1758319852251,-480.0,0.00021932,2]
[386491406,1758319852260,-480.0,0.00021932,2]
[386491408,1758319852269,-480.0,0.00021932,2]
[386491409,1758319852283,-480.0,0.00021932,2]
[386491412,1758319852293,-480.0,0.00021932,2]
[386491414,1758319852302,-480.0,0.00021932,2]
[386491416,1758319852312,-480.0,0.00021932,2]
[386491418,1758319852322,-480.0,0.00021932,2]
[386491420,1758319852331,-480.0,0.00021932,2]
[386491422,1758319852340,-480.0,0.00021932,2]
[386491424,1758319852350,-185.30995254,0.00021932,2]
[386491426,1758319852360,-658.81,0.00021932,2]
[386491428,1758319852370,-480.0,0.00021932,2]
[386491430,1758319852381,-480.0,0.00021932,2]
[386491432,1758319852390,-480.0,0.00021932,2]
[386491434,1758319852399,-480.0,0.00021932,2]
[386491436,1758319852408,-480.0,0.00021932,2]
[386491438,1758319852417,-480.0,0.00021932,2]
[386491440,1758319852427,-480.0,0.00021932,2]
[386491442,1758319852436,-480.0,0.00021932,2]
[386491443,1758319852445,-480.0,0.00021932,2]
[386491445,1758319852458,-480.0,0.00021932,2]
[386491448,1758319852467,-480.0,0.00021932,2]
[386491449,1758319852477,-480.0,0.00021932,2]
[386491452,1758319852487,-480.0,0.00021932,2]
[386491453,1758319852497,-480.0,0.00021932,2]
[386491455,1758319852506,-1312.26,0.00021933,2]
[386491457,1758319852515,-480.0,0.00021933,2]
[386491460,1758319852525,-734.42,0.00021933,2]
[386491462,1758319852535,-480.0,0.00021933,2]
[386491464,1758319852544,-1404.59,0.00021933,2]
[386491466,1758319852554,-480.0,0.00021933,2]
[386491468,1758319852563,-528.48,0.00021934,2]
[386491469,1758319852572,-480.0,0.00021934,2]
[386491472,1758319852582,-480.0,0.00021934,2]
[386491473,1758319852591,-647.46,0.00021934,2]
[386491475,1758319852601,-480.0,0.00021934,2]
[386491477,1758319852610,-497.88764718,0.00021934,2]
[386491479,1758319852620,-480.0,0.00021934,2]
[386491482,1758319852630,-480.0,0.00021934,2]
[386491484,1758319852639,-480.0,0.00021935,2]
[386491486,1758319852648,-480.0,0.00021935,2]
[386491487,1758319852658,-480.0,0.00021935,2]
[386491490,1758319852667,-480.0,0.00021935,2]
[386491491,1758319852676,-480.0,0.00021935,2]
[386491493,1758319852685,-480.0,0.00021935,2]
[386491495,1758319852695,-480.0,0.00021935,2]
[386491497,1758319852704,-516.8,0.00021935,2]
[386491499,1758319852714,-480.0,0.00021935,2]
[386491502,1758319852724,-480.0,0.00021935,2]
[386491503,1758319852733,-480.0,0.00021935,2]
[386491505,1758319852743,-480.0,0.00021935,2]
[386491508,1758319852753,-480.0,0.00021935,2]
[386491509,1758319852762,-480.0,0.00021935,2]
[386491512,1758319852772,-480.0,0.00021935,2]
[386491514,1758319852782,-480.0,0.00021935,2]
[386491515,1758319852791,-480.0,0.00021935,2]
[386491518,1758319852801,-480.0,0.00021935,2]
[386491519,1758319852811,-480.0,0.00021935,2]
[386491521,1758319852820,-480.0,0.00021935,2]
[386491523,1758319852830,-480.0,0.00021935,2]
[386491526,1758319852839,-480.0,0.00021935,2]
[386491527,1758319852849,-480.0,0.00021935,2]
[386491529,1758319852858,-480.0,0.00021935,2]
[386491531,1758319852867,-480.0,0.00021936,2]
[386491533,1758319852877,-480.0,0.00021936,2]
[386491535,1758319852887,-400.0,0.00021936,2]
[386491537,1758319852896,-421.35104753,0.00021936,2]
[386491539,1758319852906,-3423.0,0.00021936,2]
[386491541,1758319852915,-480.0,0.00021937,2]
[386491543,1758319852925,-480.0,0.00021937,2]
[386491545,1758319852935,-660.38,0.00021937,2]
[386491547,1758319852944,-480.0,0.00021937,2]
[386491549,1758319852953,-1326.05,0.00021937,2]
[386491551,1758319852963,-480.0,0.00021937,2]
[386491553,1758319852972,-5870.08,0.00021937,2]
[386491556,1758319852982,-480.0,0.00021937,2]
[386491557,1758319852991,-686.68,0.00021938,2]
[386491559,1758319853001,-480.0,0.00021938,2]
[386491562,1758319853011,-636.62,0.00021938,2]
[386491563,1758319853020,-500.0,0.00021973,2]
[386491565,1758319853029,-500.0,0.00021973,2]
[386491568,1758319853039,-500.62736572,0.00021973,2]
[386491570,1758319853048,-500.0,0.00021973,2]
[386491572,1758319853058,-500.0,0.00021973,2]
[386491573,1758319853068,-500.0,0.00021973,2]
[386491575,1758319853077,-500.0,0.00021973,2]
[386491578,1758319853087,-500.0,0.00021973,2]
[386491579,1758319853096,-500.0,0.00021973,2]
[386491582,1758319853106,-500.0,0.00021973,2]
[386491583,1758319853115,-306.58360447,0.00021973,2]
[386491585,1758319853124,-500.28396405,0.00021973,2]
[386491588,1758319853135,-500.0,0.00021973,2]
[386491590,1758319853145,-500.0,0.00021973,2]
[386491592,1758319853154,-505.41736801,0.00021973,2]
[386491593,1758319853163,-500.0,0.00021973,2]
[386491595,1758319853173,-500.0,0.00021973,2]
[386491597,1758319853182,-500.0,0.00021973,2]
[386491600,1758319853191,-500.0,0.00021973,2]
[386491601,1758319853201,-156.67294746,0.00021973,2]
[386491603,1758319853210,-500.0,0.00021973,2]
[386491606,1758319853219,-500.0,0.00021973,2]
[386491608,1758319853229,-500.0,0.00021973,2]
[386491610,1758319853238,-500.0,0.00021973,2]
[386491611,1758319853248,-500.0,0.00021973,2]
[386491613,1758319853257,-519.89432815,0.00021973,2]
[386491615,1758319853266,-500.0,0.00021973,2]
[386491617,1758319853283,-500.0,0.00021973,2]
[386491619,1758319853292,-500.0,0.00021973,2]
[386491621,1758319853302,-500.0,0.00021973,2]
[386491623,1758319853311,-500.0,0.00021973,2]
[386491625,1758319853320,-500.0,0.00021973,2]
[386491627,1758319853329,-500.0,0.00021973,2]
[386491629,1758319853338,-168.71316685,0.00021973,2]
[386491631,1758319853348,-502.03091888,0.00021973,2]
[386491632,1758319853357,-500.0,0.00021973,2]
[386491633,1758319853367,-500.0,0.00021973,2]
[386491634,1758319853376,-500.0,0.00021973,2]
[386491635,1758319853386,-500.0,0.00021973,2]
[386491636,1758319853395,-500.0,0.00021973,2]
[386491637,1758319853404,-500.0,0.00021973,2]
[386491638,1758319853414,-264.33537473,0.00021973,2]
[386491639,1758319853423,-100000.0,0.0002199,2]
[386491640,1758319853432,-3542.51,0.00022,7]
[386491641,1758319853442,-1102.57021376,0.00022098,2]
[386491642,1758319853451,-151.0,0.000221,7]
[386491643,1758319853460,-480.0,0.00022201,2]
[386491645,1758319853469,-480.0,0.00022201,2]
[386491647,1758319853478,-480.0,0.00022201,2]
[386491648,1758319853487,-480.0,0.00022201,2]
[386491650,1758319853496,-480.0,0.00022203,2]
[386491652,1758319853506,-1990.35,0.00022203,2]
[386491654,1758319853515,-1562.16,0.00022204,2]
[386491656,1758319853524,-480.0,0.00022204,2]
[386491658,1758319853534,-480.0,0.00022204,2]
[386491660,1758319853543,-480.0,0.00022204,2]
[386491669,1758319853624,-830.08,0.00022204,2]
[386491671,1758319853634,-867.16,0.00022204,2]
[386491674,1758319853644,-480.0,0.00022204,2]
[386491676,1758319853653,-480.0,0.00022204,2]
[386491678,1758319853662,-480.0,0.00022204,2]
[386491680,1758319853672,-458.89698981,0.00022204,2]
[386491681,1758319853681,-480.0,0.00022204,2]
[386491683,1758319853690,-765.92,0.00022204,2]
[386491685,1758319853700,-480.0,0.00022204,2]
[386491687,1758319853709,-480.0,0.00022204,2]
[386491689,1758319853719,-480.0,0.00022204,2]
[386491691,1758319853727,-480.0,0.00022206,2]
[386491693,1758319853737,-480.0,0.00022206,2]
[386491695,1758319853746,-480.0,0.00022206,2]
[386491697,1758319853755,-480.0,0.00022206,2]
[386491700,1758319853766,-480.0,0.00022206,2]
[386491702,1758319853775,-480.0,0.00022206,2]
[386491704,1758319853785,-480.0,0.00022206,2]
[386491706,1758319853795,-480.0,0.00022206,2]
[386491708,1758319853806,-480.0,0.00022206,2]
[386491710,1758319853816,-480.0,0.00022206,2]
[386491711,1758319853827,-480.0,0.00022206,2]
[386491713,1758319853837,-480.0,0.00022206,2]
[386491715,1758319853846,-568.17,0.00022206,2]
[386491718,1758319853856,-480.0,0.00022206,2]
[386491719,1758319853866,-480.0,0.00022206,2]
[386491721,1758319853875,-480.0,0.00022206,2]
[386491724,1758319853886,-480.0,0.00022206,2]
[386491725,1758319853899,-423.18922585,0.00022206,2]
[386491727,1758319853909,-480.0,0.00022206,2]
[386491729,1758319853919,-480.0,0.00022206,2]
[386491731,1758319853928,-480.0,0.00022206,2]
[386491733,1758319853938,-480.0,0.00022206,2]
[386491735,1758319853948,-480.0,0.00022206,2]
[386491737,1758319853957,-480.0,0.00022206,2]
[386491739,1758319853966,-480.0,0.00022206,2]
[386491741,1758319853976,-480.0,0.00022206,2]
[386491744,1758319853986,-480.0,0.00022206,2]
[386491746,1758319853996,-480.0,0.00022206,2]
[386491748,1758319854006,-480.0,0.00022206,2]
[386491749,1758319854016,-480.0,0.00022206,2]
[386491752,1758319854026,-480.0,0.00022206,2]
[386491754,1758319854036,-480.0,0.00022206,2]
[386491755,1758319854045,-480.0,0.00022206,2]
[386491757,1758319854055,-480.0,0.00022206,2]
[386491760,1758319854064,-480.0,0.00022206,2]
[386491761,1758319854075,-480.0,0.00022206,2]
[386491764,1758319854086,-480.0,0.00022206,2]
[386491765,1758319854096,-480.0,0.00022206,2]
[386491767,1758319854106,-480.0,0.00022206,2]
[386491770,1758319854116,-480.0,0.00022206,2]
[386491771,1758319854128,-658.81,0.00022206,2]
[386491773,1758319854137,-480.0,0.00022206,2]
[386491775,1758319854147,-484.46809212,0.00022206,2]
[386491777,1758319854156,-480.0,0.00022206,2]
[386491779,1758319854165,-480.0,0.00022206,2]
[386491781,1758319854175,-480.0,0.00022206,2]
[386491783,1758319854183,-480.0,0.00022206,2]
[386491785,1758319854193,-480.0,0.00022206,2]
[386491787,1758319854202,-480.0,0.00022206,2]
[386491789,1758319854211,-480.0,0.00022206,2]
[386491791,1758319854221,-1312.26,0.00022207,2]
[386491793,1758319854229,-480.0,0.00022207,2]
[386491795,1758319854238,-734.42,0.00022207,2]
[386491797,1758319854247,-480.0,0.00022207,2]
[386491799,1758319854257,-1404.59,0.00022207,2]
[386491801,1758319854268,-480.0,0.00022207,2]
[386491803,1758319854282,-528.48,0.00022208,2]
[386491805,1758319854291,-480.0,0.00022208,2]
[386491807,1758319854300,-480.0,0.00022208,2]
[386491809,1758319854310,-647.46,0.00022208,2]
[386491811,1758319854322,-480.0,0.00022208,2]
[386491813,1758319854330,-480.0,0.00022208,2]
[386491815,1758319854339,-480.0,0.00022209,2]
[386491817,1758319854350,-480.0,0.00022209,2]
[386491819,1758319854360,-480.0,0.00022209,2]
[386491821,1758319854369,-480.0,0.00022209,2]
[386491823,1758319854378,-349.57719492,0.00022209,2]
[386491824,1758319854388,-480.0,0.00022209,2]
[386491826,1758319854397,-480.0,0.00022209,2]
[386491828,1758319854406,-532.23538846,0.00022209,2]
[386491830,1758319854416,-480.0,0.00022209,2]
[386491832,1758319854426,-480.0,0.00022209,2]
[386491834,1758319854435,-480.0,0.00022209,2]
[386491836,1758319854445,-480.0,0.00022209,2]
[386491838,1758319854455,-480.0,0.00022209,2]
[386491840,1758319854464,-480.0,0.00022209,2]
[386491842,1758319854475,-480.0,0.00022209,2]
[386491844,1758319854484,-480.0,0.00022209,2]
[386491847,1758319854493,-480.0,0.00022209,2]
[386491849,1758319854503,-480.0,0.00022209,2]
[386491850,1758319854512,-480.0,0.0002221,2]
[386491852,1758319854522,-3423.0,0.0002221,2]
[386491855,1758319854531,-3285.858553,0.00022211,2]
[386491856,1758319854540,-480.0,0.00022211,2]
[386491858,1758319854550,-480.0,0.00022211,2]
[386491861,1758319854559,-660.38,0.00022211,2]
[386491862,1758319854568,-496.27760108,0.00022211,2]
[386491864,1758319854578,-1326.05,0.00022211,2]
[386491866,1758319854587,-480.0,0.00022211,2]
[386491868,1758319854597,-5870.08,0.00022211,2]
[386491871,1758319854607,-480.0,0.00022211,2]
[386491873,1758319854616,-686.68,0.00022212,2]
[386491875,1758319854625,-480.0,0.00022212,2]
[386491876,1758319854634,-636.62,0.00022212,2]
[386491879,1758319854644,-680.47851388,0.00022239,2]
[386491881,1758319854653,-431.76427705,0.00022258,2]
[386491883,1758319854663,-174.59529716,0.00022386,2]
[386491885,1758319854673,-591.91021358,0.00022468,2]
[386491886,1758319854682,-1500.0,0.00022468,2]
[386491888,1758319854692,-1408.9840808,0.00022468,2]
[386491890,1758319854702,-1165.2170314,0.00022468,2]
[386491892,1758319854711,-1500.0,0.00022468,2]
[386491894,1758319854720,-1500.0,0.00022468,2]
[386491896,1758319854730,-1500.0,0.00022468,2]
[386491898,1758319854740,-382.24,0.00022469,3]
[386491900,1758319854750,-536.58,0.00022473,3]
[386491902,1758319854759,-480.0,0.00022475,2]
[386491904,1758319854768,-480.0,0.00022475,2]
[386491906,1758319854778,-480.0,0.00022475,2]
[386491908,1758319854787,-480.0,0.00022475,2]
[386491910,1758319854796,-480.0,0.00022477,2]
[386491912,1758319854805,-1990.35,0.00022477,2]
[386491914,1758319854814,-1562.16,0.00022478,2]
[386491916,1758319854824,-480.0,0.00022478,2]
[386491918,1758319854833,-480.0,0.00022478,2]
[386491920,1758319854842,-480.0,0.00022478,2]
[386491929,1758319854915,-830.08,0.00022478,2]
[386491931,1758319854929,-867.16,0.00022478,2]
[386491933,1758319854938,-480.0,0.00022478,2]
[386491935,1758319854948,-480.0,0.00022478,2]
[386491937,1758319854957,-480.0,0.00022478,2]
[386491939,1758319854966,-480.0,0.00022478,2]
[386491941,1758319854975,-765.92,0.00022478,2]
[386491943,1758319854984,-480.0,0.00022478,2]
[386491945,1758319854993,-480.0,0.00022478,2]
[386491947,1758319855002,-480.0,0.00022478,2]
[386491949,1758319855011,-480.0,0.0002248,2]
[386491951,1758319855020,-480.0,0.0002248,2]
[386491953,1758319855030,-480.0,0.0002248,2]
[386491955,1758319855039,-480.0,0.0002248,2]
[386491957,1758319855048,-480.0,0.0002248,2]
[386491959,1758319855058,-480.0,0.0002248,2]
[386491961,1758319855067,-480.0,0.0002248,2]
[386491963,1758319855077,-480.0,0.0002248,2]
[386491965,1758319855086,-480.0,0.0002248,2]
[386491967,1758319855098,-480.0,0.0002248,2]
[386491969,1758319855108,-568.17,0.0002248,2]
[386491971,1758319855117,-480.0,0.0002248,2]
[386491973,1758319855127,-426.3931,0.0002248,2]
[386491975,1758319855137,-480.0,0.0002248,2]
[386491977,1758319855146,-480.0,0.0002248,2]
[386491979,1758319855155,-480.0,0.0002248,2]
[386491981,1758319855165,-480.0,0.0002248,2]
[386491983,1758319855175,-480.0,0.0002248,2]
[386491985,1758319855184,-481.65,0.0002248,2]
[386491987,1758319855194,-480.0,0.0002248,2]
[386491989,1758319855203,-480.0,0.0002248,2]
[386491991,1758319855212,-480.0,0.0002248,2]
[386491993,1758319855222,-480.0,0.0002248,2]
[386491995,1758319855231,-480.0,0.0002248,2]
[386491997,1758319855241,-480.0,0.0002248,2]
[386491999,1758319855251,-480.0,0.0002248,2]
[386492001,1758319855260,-480.0,0.0002248,2]
[386492003,1758319855270,-480.0,0.0002248,2]
[386492005,1758319855283,-480.0,0.0002248,2]
[386492007,1758319855292,-480.0,0.0002248,2]
[386492009,1758319855301,-480.0,0.0002248,2]
[386492011,1758319855310,-480.0,0.0002248,2]
[386492013,1758319855320,-480.0,0.0002248,2]
[386492015,1758319855330,-658.81,0.0002248,2]
[386492017,1758319855339,-480.0,0.0002248,2]
[386492019,1758319855349,-480.0,0.0002248,2]
[386492021,1758319855359,-480.0,0.0002248,2]
[386492023,1758319855369,-480.0,0.0002248,2]
[386492025,1758319855379,-480.0,0.0002248,2]
[386492027,1758319855389,-1312.26,0.00022481,2]
[386492029,1758319855398,-480.0,0.00022481,2]
[386492031,1758319855407,-734.42,0.00022481,2]
[386492033,1758319855417,-480.0,0.00022481,2]
[386492035,1758319855427,-1404.59,0.00022481,2]
[386492037,1758319855436,-480.0,0.00022481,2]
[386492039,1758319855446,-528.48,0.00022482,2]
[386492041,1758319855455,-480.0,0.00022482,2]
[386492043,1758319855465,-480.0,0.00022482,2]
[386492045,1758319855474,-647.46,0.00022482,2]
[386492047,1758319855484,-480.0,0.00022482,2]
[386492049,1758319855495,-480.0,0.00022482,2]
[386492051,1758319855505,-480.0,0.00022483,2]
[386492053,1758319855514,-480.0,0.00022483,2]
[386492055,1758319855524,-480.0,0.00022483,2]
[386492057,1758319855533,-480.0,0.00022483,2]
[386492059,1758319855542,-480.0,0.00022483,2]
[386492061,1758319855551,-480.0,0.00022483,2]
[386492063,1758319855560,-480.0,0.00022483,2]
[386492065,1758319855570,-480.0,0.00022483,2]
[386492067,1758319855579,-480.0,0.00022483,2]
[386492069,1758319855588,-480.0,0.00022483,2]
[386492071,1758319855598,-3423.0,0.00022484,2]
[386492073,1758319855607,-660.38,0.00022485,2]
[386492075,1758319855618,-1326.05,0.00022485,2]
[386492077,1758319855628,-480.0,0.00022485,2]
[386492078,1758319855637,-5870.08,0.00022485,2]
[386492079,1758319855646,-480.0,0.00022485,2]
[386492080,1758319855655,-686.68,0.00022486,2]
[386492081,1758319855664,-480.0,0.00022486,2]
[386492082,1758319855673,-636.62,0.00022486,2]
[386492083,1758319855682,-1000.0,0.00022521,2]
[386492084,1758319855691,-1000.0,0.00022521,2]
[386492085,1758319855700,-1002.64486148,0.00022521,2]
[386492086,1758319855709,-500.0,0.00022521,2]
[386492087,1758319855718,-1000.0,0.00022521,2]
[386492088,1758319855727,-501.69521707,0.00022521,2]
[386492089,1758319855736,-1000.0,0.00022521,2]
[386492090,1758319855745,-1004.10830129,0.00022521,2]
[386492091,1758319855754,-1000.0,0.00022521,2]
[386492092,1758319855763,-1000.0,0.00022521,2]
[386492093,1758319855772,-1000.0,0.00022521,2]
[386492094,1758319855781,-268.76506992,0.00022521,2]
[386492095,1758319855790,-935.93643958,0.00022521,2]
[386492096,1758319855799,-1000.0,0.00022521,2]
[386492097,1758319855808,-1000.0,0.00022521,2]
[386492098,1758319855818,-500.98626007,0.00022521,2]
[386492099,1758319855827,-1000.0,0.00022521,2]
[386492100,1758319855836,-1000.0,0.00022521,2]
[386492101,1758319855845,-1000.0,0.00022521,2]
[386492102,1758319855854,-694.52729233,0.00022521,2]
[386492103,1758319855863,-1000.0,0.00022521,2]
[386492104,1758319855872,-1000.0,0.00022521,2]
[386492105,1758319855881,-1000.0,0.00022521,2]
[386492106,1758319855890,-1000.0,0.00022521,2]
[386492107,1758319855899,-1000.0,0.00022521,2]
[386492108,1758319855908,-1000.0,0.00022521,2]
[386492109,1758319855917,-457.62265132,0.00022521,2]
[386492110,1758319855926,-1000.0,0.00022521,2]
[386492112,1758319855935,-500.0,0.000226,2]
[386492114,1758319855944,-680.47851388,0.00022649,2]
[386492116,1758319855953,-187.78006525,0.00022666,2]
[386492117,1758319855962,-480.0,0.00022749,2]
[386492119,1758319855971,-480.0,0.00022749,2]
[386492121,1758319855980,-480.0,0.00022749,2]
[386492123,1758319855990,-480.0,0.00022749,2]
[386492125,1758319855999,-480.0,0.00022751,2]
[386492127,1758319856008,-1990.35,0.00022751,2]
[386492135,1758319856018,-1562.16,0.00022752,2]
[386492137,1758319856090,-480.0,0.00022752,2]
[386492139,1758319856100,-480.0,0.00022752,2]
[386492141,1758319856109,-517.57805037,0.00022752,2]
[386492143,1758319856118,-830.08,0.00022752,2]
[386492145,1758319856128,-867.16,0.00022752,2]
[386492147,1758319856137,-480.0,0.00022752,2]
[386492149,1758319856147,-480.0,0.00022752,2]
[386492151,1758319856156,-480.0,0.00022752,2]
[386492153,1758319856166,-480.0,0.00022752,2]
[386492155,1758319856175,-765.92,0.00022752,2]
[386492157,1758319856184,-480.0,0.00022752,2]
[386492159,1758319856194,-480.0,0.00022752,2]
[386492161,1758319856203,-480.0,0.00022752,2]
[386492163,1758319856212,-480.0,0.00022754,2]
[386492165,1758319856221,-480.0,0.00022754,2]
[386492167,1758319856230,-480.0,0.00022754,2]
[386492169,1758319856239,-480.0,0.00022754,2]
[386492171,1758319856249,-386.36359039,0.00022754,2]
[386492173,1758319856258,-480.0,0.00022754,2]
[386492174,1758319856267,-480.0,0.00022754,2]
[386492177,1758319856280,-568.17,0.00022754,2]
[386492178,1758319856290,-350.66560731,0.00022754,2]
[386492180,1758319856299,-480.0,0.00022754,2]
[386492182,1758319856308,-480.0,0.00022754,2]
[386492185,1758319856319,-626.65,0.00022754,2]
[386492186,1758319856328,-480.0,0.00022754,2]
[386492188,1758319856337,-480.0,0.00022754,2]
[386492191,1758319856347,-480.0,0.00022754,2]
[386492193,1758319856357,-480.0,0.00022754,2]
[386492194,1758319856367,-370.21486954,0.00022754,2]
[386492196,1758319856377,-480.0,0.00022754,2]
[386492198,1758319856387,-480.0,0.00022754,2]
[386492200,1758319856398,-480.0,0.00022754,2]
[386492202,1758319856409,-480.0,0.00022754,2]
[386492204,1758319856418,-480.0,0.00022754,2]
[386492206,1758319856427,-480.0,0.00022754,2]
[386492208,1758319856436,-480.0,0.00022754,2]
[386492210,1758319856445,-480.0,0.00022754,2]
[386492212,1758319856455,-658.81,0.00022754,2]
[386492214,1758319856464,-480.0,0.00022754,2]
[386492216,1758319856474,-480.0,0.00022754,2]
[386492218,1758319856483,-480.0,0.00022754,2]
[386492220,1758319856492,-480.0,0.00022754,2]
[386492222,1758319856501,-480.0,0.00022754,2]
[386492224,1758319856510,-1312.26,0.00022755,2]
[386492226,1758319856519,-480.0,0.00022755,2]
[386492228,1758319856528,-734.42,0.00022755,2]
[386492230,1758319856537,-360.24,0.00022755,2]
[386492232,1758319856546,-1404.59,0.00022755,2]
[386492234,1758319856555,-480.0,0.00022755,2]
[386492236,1758319856564,-528.48,0.00022756,2]
[386492238,1758319856572,-480.0,0.00022756,2]
[386492240,1758319856580,-480.0,0.00022756,2]
[386492242,1758319856588,-647.46,0.00022756,2]
[386492244,1758319856596,-480.0,0.00022756,2]
[386492246,1758319856606,-480.0,0.00022756,2]
[386492248,1758319856616,-480.0,0.00022757,2]
[386492250,1758319856626,-515.89,0.00022757,2]
[386492252,1758319856635,-480.0,0.00022757,2]
[386492254,1758319856645,-480.0,0.00022757,2]
[386492256,1758319856654,-480.0,0.00022757,2]
[386492258,1758319856664,-203.29361289,0.00022757,2]
[386492260,1758319856673,-480.0,0.00022757,2]
[386492262,1758319856682,-480.0,0.00022757,2]
[386492263,1758319856691,-660.38,0.00022759,2]
[386492266,1758319856701,-1326.05,0.00022759,2]
[386492268,1758319856711,-5870.08,0.00022759,2]
[386492269,1758319856720,-480.0,0.00022759,2]
[386492271,1758319856729,-686.68,0.0002276,2]